Cogmind - Beta 13 @@@ ROGUE MODE // 2024.04.06 @ 10:56:41 Player: sweetanimebabe Result: Destroyed by S-10 Pest with Light Assault Rifle Performance ------------- Evolutions (1) 500 Regions Visited (4) 800 Robots Destroyed (4) 20 Value Destroyed (133) 133 Prototype IDs (0) 0 Alien Tech Used (0) 0 Bonus (33) 33 TOTAL SCORE: 1486 Bonus ------- Follower Combat Kills 33 Cogmind --------- Core Integrity 0/400 Matter 256/300 Energy 99/100 System Corruption 0% Temperature Cool (0) Movement Core (150) Ox2 Location -9/Storage Parts ------- > --- POWER (1) -------- (None) > --- PROPULSION (3) --- (None) > --- UTILITY (3) ------ Salvage Targeting Computer Propulsion Shielding > --- WEAPON (2) ------- Shotgun Shotgun > --- INVENTORY (5) ---- Cooling System Small Laser Beamcaster Peak State ------------ > --- POWER ------------ Light Angular Momentum Engine > --- PROPULSION ------- VTOL Module VTOL Module > --- UTILITY ---------- Propulsion Shielding > --- WEAPON ----------- Small Laser Small Laser > --- INVENTORY -------- VTOL Module Cooling System Small Laser Small Laser Beamcaster [Rating: 13] Favorites ----------- Power Ion Engine Engine Ion Engine Propulsion VTOL Module Leg Aluminum Leg Flight Unit VTOL Module Utility Propulsion Shielding Device Seismic Detector Processor Salvage Targeting Computer Protection Propulsion Shielding Weapon Small Laser Energy Gun Small Laser Ballistic Gun Assault Rifle Special Weapon Mining Laser Special Melee Weapon Datajack Build | -11 -10 -10 -9 -9 ------- Run | Yrd Mat Min Mat Sto Slots Evolved 2 | . . . 2 . Power . | . . . . . Propulsion 1 | . . . 1 . Utility 1 | . . . 1 . Weapon . | . . . . . Parts Attached 30 | 5 12 2 5 6 Power 4 | 1 1 . 1 1 Engine 4 | 1 1 . 1 1 Core . | . . . . . Reactor . | . . . . . Propulsion 7 | 2 2 . 2 1 Treads . | . . . . . Leg 2 | 2 . . . . Wheel . | . . . . . Hover . | . . . . . Flight 5 | . 2 . 2 1 Utility 4 | . 3 . . 1 Device 2 | . 2 . . . Storage . | . . . . . Processor 1 | . . . . 1 Hackware . | . . . . . Protection 1 | . 1 . . . Artifact . | . . . . . Weapon 15 | 2 6 2 2 3 Energy Gun 9 | 1 4 1 2 1 Energy Cannon . | . . . . . Ballistic Gun 4 | 1 1 . . 2 Ballistic Cannon . | . . . . . Launcher . | . . . . . Special Weapon 1 | . . 1 . . Impact Weapon . | . . . . . Slashing Weapon . | . . . . . Piercing Weapon . | . . . . . Special Melee Weapon 1 | . 1 . . . Unidentified Prototypes . | . . . . . Parts Lost 8 | . . 1 . 7 Power 2 | . . 1 . 1 Propulsion 3 | . . . . 3 Utility . | . . . . . Weapon 3 | . . . . 3 Highest Loss Streak 5 | . . 1 . 5 To Critical Strikes . | . . . . . Average Slot Usage (%) 68 | . 84 81 55 46 Engine 7 | . 13 10 . 2 Leg 5 | . 13 . . . Flight 18 | . 14 28 22 15 Device 9 | . 19 14 . . Protection 7 | . 1 14 11 11 Energy Gun 14 | . 14 3 21 12 Ballistic Gun 1 | . 2 . . . Special Melee Weapon 2 | . 4 8 . . Naked Turns . | . . . . . Heaviest Build 14 | 9 14 6 12 8 Greatest Support 20 | 20 20 8 8 8 Greatest Overweight (x) 3 | . 3 . 1 1 Average Overweight (x) . | . . . . . Largest Inventory Capacity 5 | 5 5 5 5 5 Average Capacity 5 | 5 5 5 5 5 Most Carried 5 | . 5 5 5 5 Average Carried 3 | . 3 4 4 3 Final Capacity 5 | 5 5 5 5 5 Final Carried 5 | . 4 5 5 3 Class Distribution -------------------- 65% | Sprinter 34% | Mutant Dominant Class ---------------- Sprinter | -10/Materials Sprinter | -10/Mines Sprinter | -9/Materials Mutant | -9/Storage Resources | -11 -10 -10 -9 -9 ----------- Run | Yrd Mat Min Mat Sto Matter Collected 428 | 216 55 52 105 . Remotely . | . . . . . Salvage Created 155 | . 103 52 . . Parts 10 | . 9 1 . . Haulers Intercepted . | . . . . . Recyclers Shooed . | . . . . . Parts Field Recycled . | . . . . . Retrieved Matter . | . . . . . Parts Self-Destructed . | . . . . . Prevented . | . . . . . Kills | -11 -10 -10 -9 -9 ------- Run | Yrd Mat Min Mat Sto Combat Hostiles Destroyed 3 | . 2 1 . . Guns 3 | . 2 1 . . Classes Destroyed 2 | . 2 . . . Builder 1 | . 1 . . . Grunt 3 | . 2 1 . . Best Kill Streak 1 | . 1 1 . . Combat Bots Only 1 | . 1 1 . . Max Kills in Single Turn 1 | . 1 1 . . Gunslinging . | . . . . . Exploded . | . . . . . Melee . | . . . . . Uniques/NPCs Destroyed . | . . . . . Combat | -11 -10 -10 -9 -9 -------- Run | Yrd Mat Min Mat Sto Hostile Shots Fired 145 | . 14 13 10 108 Missed 56 | . 2 5 6 43 Damage Taken 1074 | . 146 127 59 742 Core 425 | . 24 . . 401 Absorbed by Shields . | . . . . . Redirected to Shielding 35 | . . 12 4 19 Core Remaining (%) 95 | 100 . 90 . . Volleys Fired 30 | . 10 14 . 6 Largest 2 | . 2 1 . 2 Hottest 100 | . 100 100 . 80 Shots Fired 46 | . 20 14 . 12 Gun 45 | . 20 13 . 12 Cannon . | . . . . . Launcher . | . . . . . Special 1 | . . 1 . . Kinetic 5 | . 1 . . 4 Thermal 41 | . 19 14 . 8 Explosive . | . . . . . Electromagnetic . | . . . . . Robot Hit Streak 11 | . 5 11 . 3 Robot Miss Streak 8 | . 1 1 . 8 Penetration Max . | . . . . . Secondary Targets . | . . . . . Shots Hit Robots 34 | . 17 13 . 4 Core Hits 12 | . 7 3 . 2 Critical Kills . | . . . . . Critical Parts Destroyed . | . . . . . Critical Strikes . | . . . . . Melee Attacks 8 | . 7 1 . . Impact . | . . . . . Slashing . | . . . . . Piercing . | . . . . . Sneak Attacks . | . . . . . Combat Hostiles . | . . . . . Follow-up Attacks . | . . . . . Damage Inflicted 376 | . 194 128 . 54 Guns 369 | . 189 128 . 52 Cannons . | . . . . . Explosions . | . . . . . Melee . | . . . . . Ramming 7 | . 5 . . 2 Kinetic 22 | . 12 . . 10 Thermal 347 | . 177 128 . 42 Explosive . | . . . . . Electromagnetic . | . . . . . Impact . | . . . . . Slashing . | . . . . . Piercing . | . . . . . Highest Corruption . | . . . . . Average Corruption . | . . . . . Corruption Purged . | . . . . . Corruption Blocked . | . . . . . Overload Shots . | . . . . . Overflow Damage . | . . . . . Projectiles . | . . . . . Explosions . | . . . . . Melee . | . . . . . Knockbacks . | . . . . . Impact . | . . . . . Kinetic . | . . . . . Secondary . | . . . . . Self-Inflicted Damage 1 | . . . . 1 Shots . | . . . . . Rammed 1 | . . . . 1 Targets Rammed 3 | . 2 . . 1 Kicked 2 | . 2 . . . Crushed . | . . . . . Highest Temperature 297 | . 297 85 . 6 Average Temperature 84 | . 133 45 . 2 Received Heat Transfer 342 | . 81 72 18 171 Effects 1 | . 1 . . . Energy Bleed 1 | . 1 . . . Siege Activations . | . . . . . Robots Corrupted . | . . . . . Combat Hostiles . | . . . . . Parts Fried . | . . . . . Impact Corruptions . | . . . . . Robots Melted . | . . . . . Combat Hostiles . | . . . . . Parts Melted . | . . . . . Heat Transferred 918 | . 518 300 . 100 Parts Sabotaged . | . . . . . Parts Stolen . | . . . . . Parts Stripped . | . . . . . Power Chain Reactions . | . . . . . Alert | -11 -10 -10 -9 -9 ------- Run | Yrd Mat Min Mat Sto Peak Influence 327 | . 100 46 209 327 Initial 87 | . . 5 17 87 Average 67 | . 38 12 60 178 Maximum Alert Level 1 | . . . 1 1 Low Security (%) 94 | 100 100 100 99 72 Level 1 5 | . . . . 27 Level 2 . | . . . . . Level 3 . | . . . . . Level 4 . | . . . . . Level 5 . | . . . . . High Security . | . . . . . Max Security . | . . . . . Squads Dispatched 4 | . 1 . . 3 Investigation 2 | . . . . 2 Extermination . | . . . . . Reinforcement 2 | . 1 . . 1 Assault . | . . . . . Garrison . | . . . . . Intercept . | . . . . . Searches Triggered . | . . . . . Construction Impeded . | . . . . . Haulers Reinforced . | . . . . . Active Scanning Responses . | . . . . . Cargo Convoy Interrupts . | . . . . . Stealth | -11 -10 -10 -9 -9 --------- Run | Yrd Mat Min Mat Sto Distress Signals 3 | . . . 2 1 Communications Jammed . | . . . . . Distress Signals . | . . . . . Times Spotted 47 | . 5 2 16 24 Peak Tracking Total 14 | . 2 2 13 14 Tactical Retreats 6 | . 1 1 2 2 Traps | -11 -10 -10 -9 -9 ------- Run | Yrd Mat Min Mat Sto Traps Triggered . | . . . . . Indirectly . | . . . . . Trap Hack Attempts . | . . . . . Triggered . | . . . . . Disarmed . | . . . . . Reprogrammed . | . . . . . Reused . | . . . . . Traps Extracted . | . . . . . Installed . | . . . . . Triggered . | . . . . . Machines | -11 -10 -10 -9 -9 ---------- Run | Yrd Mat Min Mat Sto Machines Disabled . | . . . . . Max in Single Turn . | . . . . . Machines Repaired . | . . . . . Machines Dismantled . | . . . . . Machines Sabotaged . | . . . . . Overloaded Fab Kills . | . . . . . Hacking | -11 -10 -10 -9 -9 --------- Run | Yrd Mat Min Mat Sto Machines Accessed 3 | . . . 1 2 Terminals 2 | . . . . 2 Fabricators . | . . . . . Repair Stations 1 | . . . 1 . Recycling Units . | . . . . . Scanalyzers . | . . . . . Garrison Access . | . . . . . Total Hacks 8 | . . . 2 6 Successful 4 | . . . 1 3 Failed 4 | . . . 1 3 Catastrophic . | . . . . . Database Lockouts . | . . . . . Manual . | . . . . . Terminals 6 | . . . . 6 Fabricators . | . . . . . Repair Stations 2 | . . . 2 . Recycling Units . | . . . . . Scanalyzers . | . . . . . Garrison Access . | . . . . . Terminal Hacks 3 | . . . . 3 Record 1 | . . . . 1 Robot Schematic 1 | . . . . 1 Alert Level 1 | . . . . 1 Fabricator Hacks . | . . . . . Repair Station Hacks 1 | . . . 1 . Scan Component 1 | . . . 1 . Recycling Unit Hacks . | . . . . . Scanalyzer . | . . . . . Garrison Access Hacks . | . . . . . Unauthorized Hacks . | . . . . . Terminals . | . . . . . Fabricators . | . . . . . Repair Stations . | . . . . . Recycling Units . | . . . . . Scanalyzers . | . . . . . Garrison Access . | . . . . . Data Cores Recovered . | . . . . . Used . | . . . . . Hacking Detections 3 | . . . 1 2 Full Trace Events 2 | . . . . 2 Feedback Events . | . . . . . Feedback Blocked . | . . . . . Robot Schematics Acquired 1 | . . . . 1 Robots Built . | . . . . . Authchips . | . . . . . Time . | . . . . . Total Robot Build Rating . | . . . . . Part Schematics Acquired . | . . . . . Parts Built . | . . . . . Authchips . | . . . . . Time . | . . . . . Total Part Build Rating . | . . . . . Parts Repaired . | . . . . . Time . | . . . . . Parts Recycled . | . . . . . Recycled Matter . | . . . . . Retrieved Matter . | . . . . . Retrieved Components . | . . . . . Parts Scanalyzed . | . . . . . Part Schematics Acquired . | . . . . . Parts Damaged . | . . . . . Bothacking | -11 -10 -10 -9 -9 ------------ Run | Yrd Mat Min Mat Sto Used RIF Installer . | . . . . . Robots Hacked 3 | . 2 1 . . Non-combat 2 | . 2 . . . Combat 1 | . . 1 . . Robot Hacks Applied 4 | . 3 1 . . parse_system 4 | . 3 1 . . Relay Couplers Released . | . . . . . Fabnet Peak Effective % . | . . . . . Robots Rewired . | . . . . . Allies Hacked . | . . . . . Hacks Repelled . | . . . . . Allies | -11 -10 -10 -9 -9 -------- Run | Yrd Mat Min Mat Sto Total Allies 1 | . . 1 . . Largest Group 1 | . . 1 1 . Highest-Rated Group 31 | . . 31 31 . Highest-Rated Ally 31 | . . 31 31 . Total Orders . | . . . . . Ally Attacks 5 | . . . 5 . Total Damage 83 | . . . 83 . Kills 1 | . . . 1 . Allies Corrupted . | . . . . . Allies Melted . | . . . . . Intel | -11 -10 -10 -9 -9 ------- Run | Yrd Mat Min Mat Sto Robot Analysis Total . | . . . . . Derelict Logs Recovered 1 | . . 1 . . Drone Launches . | . . . . . Drone Recoveries . | . . . . . Exploration | -11 -10 -10 -9 -9 ------------- Run | Yrd Mat Min Mat Sto Turns Passed 1144 | 57 466 116 271 234 Spaces Moved 1405 | 44 392 225 247 497 Core 36 | 4 . . . 32 Treads . | . . . . . Legs 177 | 40 137 . . . Wheels . | . . . . . Hover . | . . . . . Flight 1192 | . 255 225 247 465 Fastest Speed 32 | 50 32 32 32 32 Average Speed 44 | 113 63 32 32 36 Slowest Speed 275 | 120 275 32 112 115 Overloaded Moves . | . . . . . Propulsion Burnouts . | . . . . . Robots Hopped 4 | . . . . 4 Cave-ins Triggered . | . . . . . Exploration Rate (%) 36 | 3 39 51 23 68 Regions Visited 4 Branch Regions 2 Pre-discovered Areas . | . . . . . Known Exits Taken 1 | . . 1 . . Unknown Exits Taken 3 | 1 1 . 1 . Scrap Searched . | . . . . . Spaces Dug 1 | . . 1 . . Terrain Destroyed 1 | . . 1 . . Melee . | . . . . . Projectile 1 | . . 1 . . AOE . | . . . . . Terrain Rammed . | . . . . . Walls Destroyed . | . . . . . Machines Disabled . | . . . . . Actions | -11 -10 -10 -9 -9 --------- Run | Yrd Mat Min Mat Sto Total 1857 | 48 588 250 438 533 Wait 347 | . 137 8 175 27 Move 1394 | 43 391 224 246 490 Hop 3 | . . . . 3 Pick Up 17 | . 11 1 5 . Fast Attach 19 | 5 8 . 2 4 Attach 6 | . 3 . 1 2 Detach 4 | . 4 . . . Swap 5 | . 1 2 2 . Drop 21 | . 14 . 7 . Fire 30 | . 10 14 . 6 Melee 8 | . 7 1 . . Ram 1 | . . . . 1 Kick 2 | . 2 . . . Crush . | . . . . . Escape Stasis . | . . . . . Rewire . | . . . . . Trap . | . . . . . Miscellaneous . | . . . . . Route ------- -11/Scrapyard -10/Materials -10/Mines (discovered 2 exits: *Mat x2) -9/Materials (discovered 2 exits: [*Min] / *Sto) -9/Storage History --------- Turn | Location | Event 31 | -11/Scrapyard | Discovered new exit (range 15) 58 | -11/Scrapyard | Entered Materials 472 | -10/Materials | Discovered new exit (range 16) 524 | -10/Materials | Entered Mines 584 | -10/Mines | Build established: Sprinter 620 | -10/Mines | Identified exit to Materials 622 | -10/Mines | Discovered exit to Materials (range 7) 626 | -10/Mines | Received a Mining Laser from a helpful Derelict 640 | -10/Mines | Entered Materials 640 | -9/Materials | Accompanied by 1 ally 640 | -9/Materials | Evolved 2 slots: Propulsion x1, Utility x1 874 | -9/Materials | Discovered new exit (range 16) 889 | -9/Materials | Discovered new exit (range 9) 911 | -9/Materials | Entered Storage 1094 | -9/Storage | Lost 5 parts (1p2n2w) 1102 | -9/Storage | Core integrity fell below 50% 1122 | -9/Storage | Core integrity fell below 20% 1145 | -9/Storage | Destroyed by S-10 Pest with Light Assault Rifle Last Messages --------------- Critical hit (Burn: +37). K-01 Serf collects debris. ALERT: Hostiles spotted, dispatching reinforcements to Terminal S011. VTOL Module destroyed. Sml. Laser destroyed. Ion Engine destroyed. S-10 Pest destroyed. Sml. Laser destroyed. Acquired Salvage Targeting Computer. Connecting with Terminal... >>Alert(Check) Current Alert Level: 1-S ALERT: Suspicious activity at Terminal S010. Dispatching Investigation squad. VTOL Module destroyed. Slammed into Y-45 Defender. Critical hit (Burn: +37). K-01 Serf cleans the Holding Depot. Acquired Shotgun. Map ----- +----------------------------------------------------+ | ????# #####?## ##???????# + """ # "??" # | | ????# ######?# #????????# # """ # "??" # | | ????# ##"""#?# #????????# # """ # """" # | | ???##+##"Y"### #????????# #? # # | | ???# # #???????## ##"T"#+##+##/##### | | ?### # ######### #?### #???? | | #""" # #???# #???? | | #"R / #???# ###?? | | #""" """ """ # ^ #???# # "?? | | #### """ """ ### ####### #???# # "?? | | ???# """ """ #?# #?????#######???# + "?? | | ???# #?# #???????????????# #T#?? | | ???####"T"####?# #???????????????# ###?? | | ??????#"""##T###/####????????????# =%#???? | | ??????##### #????????????# =#???? | | ??????????# #????????????# #???? | | ?????????## #????????????# #???? | | ?????????#" """ """ #????????????#+## ##### | | ?????????#T """ """ #???????????????# # ] | | ?????????#" """ """ #???????????????# / | | ?????????## #???????????????# # "" | | ??????????# #???????????????# # "" | | ??????????#+###/#########+######????+ + "" | | ??????????# s Ys o #????# # | | ??????????+ g g l #????# ##### | | ??????????# @[! #????+ | | ??????????# [! #????# | | ??????????# [!! #???## | | ??????????+ | | ??????????###+#####a ^ k k ##/## | | ???????????? ???# """" r # / | | ???????????? ???+ """" + | | ???????????? ???# """" # != | | ???????????# ??# """" #######+### # | | ???????????+ ??# """???#?????????# ##/## | | ???????????# ? ??# ?????????????# #? | | ??????????????????# ?????????????# #? | | ??????????????????# ?????????????# #? | | ??????????????????# ?????????????# ## | | ??????????????????# a ????????????# ## | | ?????????????????? ??????????????# + | | ??????????????????? ???????????????# # | | ???????????????????????????????????????# # | | ???????????????????????????????????????# ## | | ???????????????????????????????????????#+##/## | | ???????????????????????????????????????# | | ??????????????????????????????######???# | | ??????????###+##+####?????????# "T" ???# | | ??????????# #?????????# ??# | | ??????????# #?????????# ?# | +----------------------------------------------------+ Best States ------------- Heat Dissipation 47 Energy Generation 10 Energy Capacity 250 Matter Stores 300 Matter Capacity 300 Sight Range 16 Terrain Scan Density 10 Propulsion Shielding 33 Evasion (%) 63 Salvage Targeting 1 Item Schematics ----------------- None Robot Schematics ------------------ M-13 Machinist | -9/Storage | Hacked Fabricated ------------ Nothing Alien Tech Used ----------------- None Achievements -------------- None Challenges ------------ None Game ------ Seed FieldUltimateBuckler Manual? 0 Play Time 00:27:36 Cumulative 2.7 hours Start 2024.04.01 @ 21:20:19 End 2024.04.06 @ 10:56:41 Sessions 3 Manual Loads 0 Difficulty Rogue Special Mode None Game No. 7 Rogue 7 Adventurer 0 Explorer 0 Win Type - Total 0 Types 0/0/0/0/0/0/0/0/0 Lore% 0 Gallery% 8 Achievement% 5 Wizard Run 0 Options --------- Layout 1 ASCII 0 Keyboard 0 Movement Numpad Keybinds 0 Fullscreen 1 Font 32/SmallcapsGlow Map View 50x35 Zoom Use 0% Tactical HUD 0 Map Filters NONE Filters NONE Steam 1 RUN: 9429015a-776f-4c7c-89ff-73d93bd97f07